bitfinex-derivatives/quotes_SOLF0:USTF0_20250924
["timestamp","ask_amount","ask_price","bid_price","bid_amount"]
[1758702419474,12.2298,210.21,210.17,124.77]
[1758702420282,7.95,210.2,210.17,124.77]
[1758702420785,12.23,210.2,210.17,124.77]
[1758702421185,7.95,210.2,210.17,117.4]
[1758702422083,4.2803,210.19,210.17,117.4]
[1758702422378,7.95,210.18,210.17,117.4]
[1758702423085,4.2803,210.19,210.17,117.4]
[1758702423284,12.2303,210.19,210.17,117.4]
[1758702425376,4.2805,210.18,210.16,117.4]
[1758702425788,4.2805,210.18,210.16,124.77]
[1758702427090,4.2805,210.18,210.17,7.37]
[1758702432695,4.28,210.2,210.17,7.37]
[1758702432892,4.28,210.2,210.16,117.4]
[1758702433092,4.28,210.2,210.17,7.37]
[1758702433595,4.28,210.2,210.16,117.4]
[1758702433794,4.28,210.2,210.17,7.37]
[1758702434297,4.28,210.2,210.16,117.4]
[1758702434493,12.28,210.2,210.17,7.23]
[1758702434896,12.28,210.2,210.16,117.4]
[1758702435092,4.2796,210.22,210.16,117.4]
[1758702435399,8.0,210.24,210.17,7.23]
[1758702436795,4.2796,210.22,210.16,117.4]
[1758702436996,4.2796,210.22,210.17,7.23]
[1758702440407,4.2798,210.21,210.17,7.23]
[1758702440603,4.2798,210.21,210.16,117.4]
[1758702441206,4.2798,210.21,210.17,7.23]
[1758702441806,4.2798,210.21,210.16,117.4]
[1758702442203,4.2798,210.21,210.17,7.23]
[1758702443204,4.2794,210.23,210.17,8.61029134]
[1758702443407,17.64,210.22,210.17,8.61029134]
[1758702443607,17.64,210.22,210.17,1.38029134]
[1758702443810,17.64,210.22,210.18,7.42]
[1758702444002,17.64,210.22,210.17,1.38029134]
[1758702444202,17.64,210.22,210.18,7.42]
[1758702444399,17.64,210.22,210.17,1.38029134]
[1758702444610,4.2798,210.21,210.18,7.42]
[1758702444803,4.2798,210.21,210.17,1.38029134]
[1758702445707,4.2798,210.21,210.18,7.42]
[1758702446107,4.2798,210.21,210.17,1.38029134]
[1758702446809,4.2798,210.21,210.18,7.42]
[1758702447200,4.2798,210.21,210.17,1.38029134]
[1758702447609,4.2798,210.21,210.18,7.42]
[1758702448207,17.64,210.22,210.18,7.42]
[1758702448510,25.31,210.22,210.17,1.38029134]
[1758702448710,25.31,210.22,210.18,7.42]
[1758702449109,17.64,210.22,210.17,1.38029134]
[1758702449856,17.64,210.22,210.18,7.42]
[1758702450036,17.64,210.22,210.17,1.38029134]
[1758702450215,25.31,210.22,210.18,7.42]
[1758702450414,25.31,210.22,210.17,1.38029134]
[1758702450615,25.31,210.22,210.18,7.42]
[1758702451015,7.67,210.21,210.18,7.42]
[1758702451215,7.67,210.21,210.17,1.38029134]
[1758702451511,17.64,210.22,210.18,7.42]
[1758702451716,25.31,210.22,210.17,1.38029134]
[1758702452718,17.64,210.22,210.21,1.38029134]
[1758702452918,17.64,210.22,210.21,126.12029134]
[1758702455116,17.64,210.22,210.21,126.60029134]
[1758702455311,11.9477,210.31,210.25,8.80029134]
[1758702455511,7.67,210.3,210.27,7.42]
[1758702462816,7.67,210.3,210.26,124.74]
[1758702463016,7.67,210.3,210.27,7.42]
[1758702464221,7.67,210.3,210.27,1.38029134]
[1758702464525,7.67,210.3,210.27,8.80029134]
[1758702465026,4.2773,210.33,210.27,1.38029134]
[1758702465222,11.9473,210.33,210.27,8.80029134]
[1758702465822,4.2769,210.36,210.29,1.38029134]
[1758702466019,11.9469,210.36,210.31,1.38029134]
[1758702466219,11.9469,210.36,210.33,7.42]
[1758702466220,7.67,210.36,210.33,7.42]
[1758702466529,4.2763,210.38,210.34,7.42]
[1758702466719,7.67,210.37,210.34,7.42]
[1758702467224,4.2759,210.4,210.34,7.42]
[1758702467419,7.67,210.41,210.34,7.42]
[1758702467814,11.9458,210.41,210.34,7.42]
[1758702468518,11.9458,210.41,210.35,1.38029134]
[1758702468927,7.67,210.41,210.35,1.38029134]
[1758702469326,7.67,210.41,210.38,7.42]
[1758702469523,7.67,210.41,210.39,117.22]
[1758702470126,15.47737271,210.47,210.39,117.22]
[1758702470127,4.2749,210.45,210.39,124.64]
[1758702470323,7.67,210.44,210.39,124.64]
[1758702470525,4.2749,210.45,210.39,124.64]
[1758702470724,11.9449,210.45,210.39,124.64]
[1758702471626,7.67,210.45,210.39,124.64]
[1758702471833,7.67,210.53,210.4,7.42]
[1758702472926,7.67,210.49,210.4,7.42]
[1758702475226,4.2742,210.48,210.4,7.42]
[1758702475625,66.495,210.46,210.35,7.71]
[1758702475833,66.495,210.46,210.36,32.86]
[1758702476638,7.6,210.45,210.36,32.86]
[1758702476833,66.495,210.46,210.36,32.86]
[1758702476834,4.2755,210.42,210.36,32.86]
[1758702477137,7.6,210.42,210.37,7.71]
[1758702477335,7.6,210.42,210.36,40.57]
[1758702479828,7.6,210.4,210.32,7.71]
[1758702480138,7.6,210.41,210.32,41.26]
[1758702480330,66.5084,210.42,210.32,41.26]
[1758702480527,7.6,210.41,210.32,41.26]
[1758702480732,4.2765,210.37,210.32,41.26]
[1758702480938,7.6,210.36,210.32,48.97]
[1758702481541,7.6,210.37,210.28,7.71]
[1758702481743,66.5206,210.38,210.28,94.07]
[1758702482038,4.277,210.35,210.28,94.07]
[1758702482239,7.6,210.37,210.29,7.71]
[1758702482444,7.6,210.35,210.25,7.71]
[1758702482630,7.6,210.33,210.27,117.14]
[1758702483031,7.6,210.33,210.25,7.71]
[1758702483338,7.6,210.34,210.25,124.85]
[1758702483539,66.5308,210.35,210.25,124.85]
[1758702483736,7.6,210.29,210.25,124.85]
[1758702485637,11.8773,210.33,210.25,124.85]
[1758702485830,11.8773,210.33,210.25,7.71]
[1758702486039,11.8773,210.33,210.26,117.14]
[1758702486840,7.6,210.3,210.26,117.14]
[1758702487041,4.2777,210.31,210.25,7.71]
[1758702487242,11.8777,210.31,210.25,124.85]
[1758702495842,4.2772,210.34,210.26,7.42]
[1758702499540,7.97,210.32,210.26,7.42]
[1758702499744,7.97,210.32,210.21,2.15316345]
[1758702499745,7.97,210.35,210.27,117.14]
[1758702500048,12.2478,210.31,210.26,117.12]
[1758702500350,12.2478,210.31,210.27,7.42]
[1758702501546,7.97,210.3,210.27,7.42]
[1758702504346,66.5364,210.33,210.21,6.43286345]
[1758702504553,7.28,210.32,210.23,7.7]
[1758702504943,11.5575,210.32,210.23,7.7]
[1758702505852,7.28,210.32,210.23,7.7]
[1758702506943,7.28,210.32,210.25,7.7]
[1758702507146,7.28,210.39,210.25,7.7]
[1758702508758,4.2768,210.36,210.26,4.2785]
[1758702508958,7.28,210.35,210.27,7.7]
[1758702509256,7.28,210.35,210.28,94.36]
[1758702509756,7.28,210.35,210.29,7.7]
[1758702512951,7.28,210.35,210.29,4.2779]
[1758702513156,11.5563,210.38,210.3,7.7]
[1758702514252,7.28,210.41,210.31,7.7]
[1758702515249,4.2759,210.4,210.31,7.7]
[1758702515558,7.28,210.39,210.31,7.7]
[1758702516261,11.5562,210.39,210.31,7.7]
[1758702519262,7.28,210.39,210.3,117.06]
[1758702519465,7.28,210.39,210.27,6.43166345]
[1758702519466,66.511,210.41,210.28,124.74]
[1758702519660,66.517,210.39,210.28,7.7]
[1758702519966,7.28,210.38,210.28,7.7]
[1758702520563,4.2774,210.33,210.28,7.7]
[1758702520762,7.28,210.32,210.28,7.7]
[1758702521160,7.28,210.32,210.26,117.04]
[1758702521357,11.5576,210.32,210.25,117.04]
[1758702523260,7.28,210.31,210.25,117.04]
[1758702529968,7.28,210.31,210.25,117.02]
[1758702533563,11.6376,210.32,210.25,117.02]
[1758702533770,11.6376,210.32,210.25,124.51]
[1758702534277,1.37993574,210.27,210.19,11.47602195]
[1758702534473,7.36,210.26,210.19,7.49]
[1758702535774,7.36,210.26,210.2,7.49]
[1758702538082,1.18933021,210.25,210.15,3.98602195]
[1758702538272,14.37933897,210.28,210.16,37.03]
[1758702538273,9.92939888,210.24,210.16,37.03]
[1758702538474,8.73993574,210.24,210.16,37.03]
[1758702539988,8.73993574,210.24,210.17,7.49]
[1758702540588,4.2793,210.23,210.17,7.49]
[1758702542491,8.73993574,210.24,210.17,7.49]
[1758702544885,4.2794,210.23,210.17,7.49]
[1758702549597,75.30543574,210.24,210.12,7.49]
[1758702549887,7.36,210.2,210.12,85.73]
[1758702550887,4.2802,210.19,210.12,85.73]
[1758702554187,4.2802,210.19,210.13,7.98]
[1758702554996,7.36,210.2,210.13,7.98]
[1758702559200,4.2801,210.19,210.13,7.98]
[1758702559399,7.86,210.17,210.09,7.98]
[1758702560905,12.1411,210.15,210.09,7.98]
[1758702561197,9.23993574,210.15,210.09,7.98]
[1758702561400,7.86,210.11,210.04,7.98]
[1758702561797,66.5713,210.22,210.07,12.2624]
[1758702561798,1.37993574,210.15,210.07,12.2624]
[1758702562304,7.86,210.14,210.07,12.2624]
[1758702563201,7.86,210.14,210.08,4.2822]
[1758702563596,1.37993574,210.15,210.06,9.13993574]
[1758702563802,92.2452,210.24,210.06,7.76]
[1758702563803,9.15993574,210.17,210.06,7.76]
[1758702563997,7.78,210.13,210.06,7.76]
[1758702566704,7.78,210.13,210.06,12.0426]
[1758702567197,7.78,210.13,210.06,7.76]
[1758702568299,12.0614,210.13,210.03,72.5432]
[1758702568506,4.2814,210.13,210.03,80.3032]
[1758702568802,7.78,210.12,210.03,80.3032]
[1758702569005,9.15993574,210.12,210.03,80.3032]
[1758702570204,9.15993574,210.12,210.04,7.76]
[1758702572313,9.15993574,210.12,210.05,7.76]
[1758702574804,7.78,210.12,210.06,4.2827]
[1758702575009,1.37993574,210.14,210.07,7.76]
[1758702576409,1.37993574,210.14,210.08,4.2822]
[1758702577102,9.15993574,210.14,210.08,4.2822]
[1758702577303,7.78,210.14,210.09,7.76]
[1758702577507,7.78,210.14,210.08,4.2822]
[1758702577904,7.78,210.14,210.09,7.76]
[1758702578212,7.78,210.14,210.08,4.2822]
[1758702578710,7.78,210.14,210.08,12.0422]
[1758702583310,1.37993574,210.16,210.09,7.76]
[1758702583710,1.37993574,210.16,210.09,12.042]
[1758702583907,7.78,210.17,210.08,7.76]
[1758702584811,7.78,210.17,210.1,7.76]
[1758702585718,9.15993574,210.17,210.1,7.76]
[1758702589710,13.44053574,210.17,210.1,7.76]
[1758702592616,12.0606,210.17,210.1,7.76]
[1758702593211,2.15928536,210.21,210.07,11.74602195]
[1758702593212,7.78,210.18,210.07,11.74602195]
[1758702593518,7.78,210.16,210.07,7.76]
[1758702594818,4.2813,210.14,210.07,7.76]
[1758702595011,11.7513,210.14,210.07,7.76]
[1758702596312,7.47,210.14,210.07,7.76]
[1758702596514,66.5652,210.24,210.07,3.98602195]
[1758702596710,7.47,210.22,210.09,7.57]
[1758702596920,7.47,210.2,210.09,7.57]
[1758702597220,7.47,210.18,210.09,7.57]
[1758702597409,1.18986532,210.17,210.09,7.57]
[1758702597614,7.47,210.18,210.09,7.57]
[1758702597816,1.18984682,210.17,210.1,4.2818]
[1758702598118,7.47,210.18,210.1,4.2818]
[1758702598321,1.18984644,210.17,210.1,4.2818]
[1758702598520,7.47,210.18,210.1,4.2818]
[1758702598721,1.18982869,210.17,210.1,4.2818]
[1758702599021,7.47,210.18,210.1,4.2818]
[1758702599217,1.18982869,210.17,210.1,4.2818]
[1758702599417,7.47,210.18,210.1,4.2818]
[1758702599618,1.18982869,210.17,210.1,4.2818]
[1758702599819,11.7504,210.18,210.1,4.2818]
[1758702600014,1.18982869,210.17,210.1,4.2818]
[1758702600220,11.7504,210.18,210.1,4.2818]
[1758702600419,1.18982869,210.17,210.1,4.2818]
[1758702600621,11.7504,210.18,210.1,4.2818]
[1758702600819,1.18982869,210.17,210.09,11.55602195]
[1758702601119,1.18984644,210.16,210.09,11.55602195]
[1758702601319,5.82467437,210.26,210.1,7.57]
[1758702601617,7.47,210.23,210.12,3.98602195]
[1758702601817,1.18976523,210.22,210.14,7.57]
[1758702602010,7.47,210.23,210.15,7.57]
[1758702602211,7.47,210.23,210.17,7.57]
[1758702602920,7.47,210.23,210.13,3.98602195]
[1758702603218,7.47,210.21,210.12,11.55602195]
[1758702604222,7.47,210.21,210.13,3.98602195]
[1758702604417,7.47,210.21,210.12,8.26732195]
[1758702604612,7.47,210.21,210.13,3.98602195]
[1758702604810,7.47,210.21,210.15,7.57]
[1758702605019,7.47,210.24,210.17,7.57]
[1758702607621,11.7485,210.27,210.17,7.57]
[1758702607819,7.47,210.27,210.16,70.57542195]
[1758702608118,49.75040509,210.31,210.16,70.57542195]
[1758702608119,7.47,210.3,210.2,7.57]
[1758702608622,7.47,210.3,210.23,7.57]
[1758702608817,49.75040509,210.31,210.24,7.57]
[1758702609021,7.47,210.33,210.24,7.57]
[1758702609820,7.47,210.33,210.21,70.06]
[1758702610427,7.47,210.3,210.19,7.57]
[1758702611422,4.2787,210.26,210.19,7.57]
[1758702612526,7.47,210.27,210.19,7.57]
[1758702613627,4.2783,210.29,210.21,7.57]
[1758702614427,7.55,210.28,210.21,7.57]
[1758702615627,4.2785,210.27,210.21,7.57]
[1758702615922,7.55,210.26,210.18,45.64]
[1758702616924,4.2789,210.25,210.18,45.64]
[1758702619430,7.55,210.26,210.19,7.91]
[1758702623043,4.2781,210.29,210.19,7.91]
[1758702623540,4.2781,210.29,210.2,7.91]
[1758702625138,7.55,210.3,210.2,7.91]
[1758702625938,7.55,210.3,210.21,7.26]
[1758702626940,11.828,210.3,210.21,7.26]
[1758702628537,12.2574,210.33,210.22,2.15928536]
[1758702628740,68.67368536,210.4,210.23,7.26]
[1758702629037,7.98,210.37,210.27,7.26]
[1758702629640,7.98,210.37,210.27,4.2783]
[1758702629847,7.98,210.37,210.28,7.26]
[1758702631838,7.98,210.37,210.29,7.26]
[1758702632543,7.98,210.37,210.3,7.26]
[1758702632942,12.2559,210.4,210.3,7.26]
[1758702633647,12.2559,210.4,210.31,7.26]
[1758702633648,7.98,210.4,210.31,7.26]
[1758702635141,66.5112,210.41,210.3,30.28]
[1758702635339,7.98,210.34,210.27,7.26]
[1758702636135,4.2773,210.33,210.25,78.9]
[1758702636338,7.98,210.32,210.25,78.9]
[1758702636744,7.98,210.32,210.24,7.26]
[1758702636944,7.98,210.32,210.25,116.8]
[1758702639344,7.98,210.32,210.26,7.26]
[1758702643249,7.98,210.32,210.28,7.26]
[1758702643951,7.98,210.36,210.28,7.26]
[1758702645745,4.2769,210.35,210.28,7.26]
[1758702656171,7.68,210.39,210.3,1.37952321]
[1758702656375,7.68,210.39,210.31,7.7]
[1758702657862,7.68,210.39,210.31,11.9775]
[1758702658568,7.68,210.39,210.33,9.07952321]
[1758702659773,11.9555,210.42,210.34,4.2769]
[1758702659969,11.9555,210.42,210.35,7.7]
[1758702660268,7.68,210.42,210.35,9.07952321]
[1758702661075,7.68,210.42,210.35,13.35622321]
[1758702661476,7.68,210.42,210.35,9.07952321]
[1758702662776,11.9556,210.42,210.35,9.07952321]
[1758702663376,7.68,210.39,210.34,116.72]
[1758702663573,7.68,210.39,210.33,116.7]
[1758702664377,7.68,210.39,210.32,1.37952321]
[1758702664677,7.68,210.44,210.34,1.37952321]
[1758702664980,11.9552,210.44,210.35,7.7]
[1758702668584,7.68,210.44,210.37,7.7]
[1758702669790,7.68,210.44,210.37,11.9764]
[1758702670289,7.68,210.44,210.37,7.7]
[1758702670489,11.9551,210.44,210.37,7.7]
[1758702672084,7.68,210.44,210.37,11.9764]
[1758702672384,7.68,210.44,210.38,9.07952321]
[1758702672783,7.68,210.44,210.38,66.57952321]
[1758702673287,11.9545,210.47,210.39,7.7]
[1758702674789,7.68,210.5,210.43,7.7]
[1758702675390,7.68,210.5,210.43,11.9752]
[1758702676289,7.68,210.5,210.43,7.7]
[1758702679491,11.954,210.5,210.43,7.7]
[1758702681491,7.98,210.48,210.39,8.97952321]
[1758702682795,4.2745,210.47,210.39,8.97952321]
[1758702683001,4.2745,210.47,210.39,7.6]
[1758702683803,4.2748,210.46,210.39,7.6]
[1758702684002,66.4886,210.48,210.38,116.62]
[1758702684196,1.37952321,210.47,210.38,116.62]
[1758702684391,7.79,210.46,210.38,116.62]
[1758702685803,4.2752,210.44,210.38,116.62]
[1758702686304,4.2752,210.44,210.38,124.47]
[1758702691807,4.2752,210.44,210.38,7.85]
[1758702692005,12.0652,210.44,210.4,7.85]
[1758702692405,12.0652,210.44,210.39,116.6]
[1758702692608,12.0652,210.44,210.4,7.85]
[1758702693008,12.0652,210.44,210.39,116.6]
[1758702693913,12.0652,210.44,210.4,7.85]
[1758702694515,12.0652,210.44,210.39,116.6]
[1758702695216,12.0652,210.44,210.38,1.37952321]
[1758702695413,12.0652,210.44,210.39,47.67]
[1758702695721,12.0652,210.44,210.4,7.85]
[1758702696716,7.79,210.43,210.4,7.85]
[1758702697422,7.79,210.43,210.39,7.85]
[1758702697725,7.79,210.46,210.37,116.58]
[1758702697925,7.79,210.46,210.37,124.43]
[1758702698113,7.79,210.46,210.38,1.37952321]
[1758702698315,7.79,210.46,210.4,1.37952321]
[1758702698623,80.47937507,210.53,210.44,12.1249]
[1758702698624,7.79,210.5,210.44,12.1249]
[1758702699317,7.79,210.5,210.44,7.85]
[1758702700123,7.79,210.5,210.42,1.37952321]
[1758702700821,7.79,210.5,210.43,7.85]
[1758702701622,7.79,210.57,210.47,7.85]
[1758702701821,7.79,210.55,210.48,1.37952321]
[1758702702017,7.79,210.55,210.49,7.85]
[1758702702219,21.77224853,210.59,210.5,1.37952321]
[1758702702424,21.77224853,210.59,210.53,7.85]
[1758702702822,7.79,210.59,210.53,7.85]
[1758702705025,4.2716,210.61,210.53,7.85]
[1758702706529,22.33831995,210.62,210.53,7.85]
[1758702707031,7.79,210.62,210.53,7.85]
[1758702708429,7.79,210.62,210.55,7.85]
[1758702708624,71.64817281,210.68,210.55,9.22952321]
[1758702708625,13.44022321,210.66,210.55,9.22952321]
[1758702709029,12.0607,210.66,210.58,7.85]
[1758702711231,13.44052321,210.64,210.58,7.85]
[1758702714633,12.061,210.64,210.58,7.85]
[1758702716535,7.73,210.67,210.58,7.85]
[1758702716836,7.73,210.67,210.6,7.76]
[1758702721034,7.73,210.67,210.61,4.2716]
[1758702721235,4.2698,210.7,210.62,7.76]
[1758702722037,7.73,210.69,210.62,7.76]
[1758702727450,4.2698,210.7,210.61,4.2716]
[1758702727451,7.73,210.73,210.66,7.76]
[1758702727956,11.9993,210.73,210.66,7.76]
[1758702728749,4.2695,210.72,210.66,7.76]
[1758702728950,7.73,210.71,210.61,27.94]
[1758702729747,4.27,210.69,210.62,4.2712]
[1758702730850,4.27,210.69,210.62,55.92]
[1758702731548,4.27,210.69,210.61,12.0314]
[1758702731549,7.73,210.68,210.61,97.5]
[1758702732250,12.0003,210.68,210.61,97.5]
[1758702735552,66.4259,210.68,210.57,7.68]
[1758702735851,7.52,210.67,210.57,7.68]
[1758702736648,66.4328,210.66,210.54,7.68]
[1758702736851,7.52,210.65,210.54,7.68]
[1758702737449,7.52,210.65,210.55,7.68]
[1758702738758,7.52,210.65,210.57,4.2722]
[1758702738957,7.52,210.65,210.58,7.68]
[1758702742458,11.7909,210.65,210.58,7.68]
[1758702745059,7.52,210.65,210.58,11.9522]
[1758702745258,7.52,210.65,210.59,7.75]
[1758702747059,7.52,210.65,210.59,4.2718]
[1758702747267,4.2704,210.68,210.61,7.75]
[1758702747268,7.72,210.68,210.61,7.75]
[1758702748865,7.72,210.68,210.62,4.2712]
[1758702750863,7.72,210.68,210.61,7.75]
[1758702752066,7.72,210.67,210.58,7.75]
[1758702752266,66.4197,210.7,210.59,45.22]
[1758702752469,7.72,210.69,210.59,45.22]
[1758702752668,66.4197,210.7,210.59,45.22]
[1758702752866,7.72,210.69,210.59,45.22]
[1758702753170,66.4197,210.7,210.59,45.22]
[1758702753369,7.72,210.69,210.59,45.22]
[1758702753871,7.72,210.67,210.58,7.75]
[1758702754767,4.2713,210.63,210.58,7.75]
[1758702755160,7.72,210.62,210.58,7.75]
[1758702756762,4.2713,210.63,210.58,7.75]
[1758702756959,7.72,210.63,210.54,11.73646237]
[1758702757163,7.72,210.63,210.54,7.75]
[1758702758476,11.9924,210.58,210.51,3.98646237]
[1758702759172,4.2731,210.54,210.51,3.98646237]
[1758702759469,7.72,210.53,210.47,11.73646237]
[1758702760069,71.76164,210.64,210.48,7.75]
[1758702760269,7.72,210.61,210.5,3.98646237]
[1758702760570,7.72,210.61,210.51,7.75]
[1758702760969,21.97145491,210.61,210.51,7.75]
[1758702761168,7.72,210.61,210.51,7.75]
[1758702761778,4.2722,210.59,210.51,7.75]
[1758702761981,7.72,210.58,210.51,7.75]
[1758702772891,2.14967929,210.68,210.51,7.75]
[1758702773091,7.72,210.66,210.52,7.75]
[1758702773786,4.2714,210.63,210.53,4.2731]
[1758702773989,7.33,210.62,210.54,7.99]
[1758702775792,11.6015,210.62,210.54,7.99]
[1758702776894,11.6015,210.62,210.54,9.36610349]
[1758702777992,11.6015,210.62,210.54,7.99]
[1758702778196,11.6015,210.62,210.54,9.36610349]
[1758702778197,7.33,210.61,210.54,9.36610349]
[1758702778395,7.33,210.61,210.54,7.99]
[1758702779290,80.3757431,210.69,210.5,7.99]
[1758702779291,7.33,210.57,210.5,7.99]
[1758702779596,7.33,210.57,210.5,11.97646237]
[1758702779790,7.33,210.57,210.52,1.37610349]
[1758702779990,7.33,210.57,210.53,7.99]
[1758702780296,7.33,210.61,210.53,7.99]
[1758702782398,7.33,210.61,210.55,1.37610349]
[1758702782790,7.33,210.61,210.56,7.99]
[1758702782989,7.33,210.61,210.55,9.36610349]
[1758702783792,7.33,210.66,210.58,1.37610349]
[1758702786498,7.33,210.66,210.59,7.99]
[1758702789892,7.33,210.66,210.59,12.2618]
[1758702790090,7.33,210.66,210.59,4.2718]
[1758702790400,7.33,210.66,210.6,7.99]
[1758702790802,7.33,210.69,210.62,7.99]
[1758702792802,7.33,210.66,210.62,7.99]
[1758702795809,7.33,210.66,210.62,7.28]
[1758702796007,7.36,210.7,210.64,1.37610349]
[1758702796313,7.36,210.7,210.64,8.65610349]
[1758702802814,7.36,210.7,210.65,1.37610349]
[1758702803007,4.2697,210.71,210.65,1.37610349]
[1758702803408,7.36,210.7,210.65,1.37610349]
[1758702803616,7.83,210.7,210.65,1.37610349]
[1758702803808,7.83,210.7,210.65,9.23610349]
[1758702804008,4.2697,210.71,210.65,9.23610349]
[1758702804212,7.83,210.7,210.65,9.23610349]
[1758702804410,4.2697,210.71,210.65,9.23610349]
[1758702805115,7.83,210.7,210.65,9.23610349]
[1758702805713,12.0997,210.71,210.65,9.23610349]
[1758702808115,4.2699,210.7,210.62,7.86]
[1758702808323,7.83,210.69,210.62,7.86]
[1758702808621,7.83,210.69,210.63,1.37610349]
[1758702809823,7.83,210.67,210.63,9.23610349]
[1758702811523,4.2702,210.68,210.63,9.23610349]
[1758702811726,7.83,210.67,210.63,1.37610349]
[1758702811921,7.83,210.67,210.64,7.86]
[1758702812219,7.83,210.67,210.63,1.37610349]
[1758702812424,7.83,210.67,210.64,7.86]
[1758702812825,7.83,210.67,210.63,5.64720349]
[1758702813220,7.83,210.67,210.64,7.86]
[1758702813918,7.83,210.67,210.63,5.64720349]
[1758702814519,7.83,210.67,210.64,7.86]
[1758702814715,7.83,210.67,210.63,5.64720349]
[1758702814919,4.2694,210.72,210.66,1.37610349]
[1758702815118,7.83,210.71,210.66,1.37610349]
[1758702815321,4.2694,210.72,210.66,1.37610349]
[1758702815524,7.83,210.71,210.66,1.37610349]
[1758702815719,4.2694,210.72,210.67,7.86]
[1758702816620,7.83,210.71,210.67,7.86]
[1758702817530,4.2694,210.72,210.67,7.86]
[1758702817725,7.83,210.71,210.67,7.86]
[1758702817927,4.2694,210.72,210.67,7.86]
[1758702818121,7.83,210.71,210.67,7.86]
[1758702818826,7.83,210.71,210.66,1.37610349]
[1758702818827,4.269,210.74,210.66,1.37610349]
[1758702819033,4.269,210.74,210.69,9.23610349]
[1758702819233,7.83,210.73,210.7,7.86]
[1758702819529,49.6145897,210.76,210.7,7.86]
[1758702820130,1.37610349,210.79,210.7,7.86]
[1758702820432,7.83,210.78,210.69,9.23610349]
[1758702820725,4.2694,210.72,210.69,1.37610349]
[1758702821024,4.2694,210.72,210.66,27.75610349]
[1758702821229,12.0994,210.72,210.66,35.61610349]
[1758702822030,12.0994,210.72,210.66,39.88660349]
[1758702822734,7.83,210.72,210.66,39.88660349]
[1758702825222,7.83,210.72,210.63,9.23610349]
[1758702826734,12.1003,210.68,210.63,1.37610349]
[1758702826936,12.1003,210.68,210.64,7.86]
[1758702827937,4.2709,210.65,210.6,3.98646237]
[1758702828128,7.83,210.72,210.6,1.37610349]
[1758702828331,9.20610349,210.72,210.62,4.2712]
[1758702828538,4.2697,210.71,210.64,7.86]
[1758702829136,7.83,210.73,210.66,9.23610349]
[1758702830143,4.2695,210.72,210.66,9.23610349]
[1758702830741,7.83,210.73,210.66,9.23610349]
[1758702831343,7.83,210.73,210.66,5.64650349]
[1758702831545,7.83,210.73,210.67,7.86]